Workbook

Sheet Contents
B9: National Health Superannuation Scheme Scotland - Illustration of changes to the Scheme from 1 April 2008
B29: Disclaimer
B31: This ready reckoner is intended for illustrative purposes only. This is not a statement of your legal entitlement.
B32: While every care has been taken in the preparation of this ready reckoner the Scottish Public Pensions Agency
B33: will accept no responsibility for the accuracy of the information it provides.
B35: Please refer to the other pages on the SPPA website for points of contact and details of the other benefits
B36: available through the NHS Scheme.
B38: This calculator has been prepared on the basis of the assumption that the amendment (No. 2) Regulations 2008
B39: will be brought into force in the form in which they are being consulted upon and must be used accordingly.
B40: It is possible that the Regulations may vary following consultation in which case some of these arrangements
B41: might change.

Sheet Guidance Notes (hidden)
A1: Notes For Guidance
A3: From 1 April 2008 existing members will retain a Normal Pension Age (NPA) of 60 with an accrual rate of 1/80th plus a lump sum
A4: of 3 x pension (as a minimum), and members with pensionable service on or after 1 April 2008 have an option to take a higher lump
A5: sum (up to HM Revenue and Customs limits) by surrendering £1 of annual pension for £12 of lump sum. Existing members | P5: 1. Please note: The remaining pension must be sufficient to meet any liability to pay
A6: cannot take less than 3 x pension (3/80ths) as a tax free lump sum. | P6: a minimum amount in respect of membership before 1997 that was contracted out of the State Pension Scheme (The Guaranteed Minimum Pension).
A8: For new entrants to the NHS their NPA will be 65 with an accrual rate of 1/60th. On retiring at age 65 their pension would be | P8: 2. Figures do not include any reduction for income tax that may be due on your pension or potential lifetime allowance charges. Under HMRC Regulations lump sum payments cannot exceed 25% of a members fund value within the scheme.
A9: based on 1/60th of salary for each year of pensionable service with the flexible option to take up to 25% of the "fund value"
A10: after commutation as a tax free lump sum by surrendering £1 of annual pension for £12 of lump sum.
A12: New entrants will be defined as those who enter the scheme after 1 April 2008 with no previous pensionable service to their credit
A13: and who return to NHS employment after 31 March 2008 having been out of pensionable service for more than five years.
A15: Members who have currently been out of pensionable service for more than five years, but who return to NHS employment by 31 March 2008 will
A16: retain a Normal Pension Age of 60 (irrespective of the length of break in service). Those who re-enter pensionable service after
A17: 31March 2008, following a break of service of more than 5 years, will be subject to the provisions that apply to new entrants in respect
A18: of their future service. Benefits already accrued, however, would still be payable at age 60.
A21: 1. Please note: The remaining pension must be sufficient to meet any liability to pay a minimum amount in respect of membership before 1997 that was contracted
A22: out of the State Pension Scheme (The Guaranteed Minimum Pension).
A24: 2. Figures do not include any reduction for income tax that may be due on your pension or potential lifetime allowance charges.
A25: Under HMRC Regulations lump sum payments cannot exceed 25% of a members fund value within the scheme.

Sheet Commutation of Pension (hidden)
C2: DATA INPUT
D5: Service at retirement
D7: Years
D8: Days
D11: Pensionable Salary | F11: 10000
D13: Date of Birth

Sheet NHS Existing Members (hidden)
B1: ESTIMATED PENSION AND COMMUTABLE AMOUNT
C3: Estimated Pension and Lump Sum
C5: Annual Pension: | E5: =Sheet5!J8 -> 4250
C6: Automatic Lump Sum: | E6: =Sheet5!J9 -> 12750
C9: Maximum Commutaion
C11: The Maximum extra lump sum you can have is: | F11: =G32*12 -> 10008 | G11: giving you a total lump sum of: | J11: =F11+E6 -> 22758
C13: and a reduced pension of: | F13: =E5-G32 -> 3416
C16: Choose a different Lump Sum (this must be whole pounds only, and can not exceed the maximum stated above)
C18: Your chosen extra Lump Sum: | F18: 10000 | H18: Your Pension reduces to: | J18: =E5-(F18/12) -> 3416.666667
H20: Your Lump Sum: | J20: =E6+F18 -> 22750
C24: Choose how much Pension you wish to commute (this must be whole pounds only)
D26: This must be between £1 and | F26: =H37 -> 834
D28: Your chosen amount to Commute: | H28: Your Pension reduces to: | J28: =E5-F28 -> 4250
H30: Your Lump Sum: | J30: =E6+(F28*12) -> 12750
C32: Maximum Pension that can be commuted = | G32: =ROUNDDOWN(E5*19.64285%,0) -> 834
C35: How much would you like to commute?
D37: 2087 | E37: You can commute between £1 and | H37: =G32 -> 834
C40: DETAILS AFTER COMMUTATION
C42: Pension | D42: =IF(D37<=G32,E5-D37,"YOU CAN NOT COMMUTE THIS AMOUNT OF PENSION") -> YOU CAN NOT COMMUTE THIS AMOUNT OF PENSION
C43: Lump Sum | D43: =IF(D37<=G32,E6+(D37*12),"PLEASE RE-INPUT FIGURES") -> PLEASE RE-INPUT FIGURES

Sheet STSS New Members (hidden)
B1: ESTIMATED PENSION AND COMMUTABLE AMOUNT
C3: Estimated Pension at retiral
C5: Annual Pension | E5: =Sheet5!L8 -> 5666.666667
C8: Maximum Pension that can be commuted = | G8: =ROUND(E5*35.7142857%,2) -> 2023.81
C12: How much would you like to commute?
E14: You can commute between £1 and | H14: =G8 -> 2023.81
C17: DETAILS AFTER COMMUTATION
C19: Pension | D19: =IF(D14<=G8,E5-D14,"YOU CAN NOT COMMUTE THIS AMOUNT OF PENSION") -> 5666.666667
C20: Lump Sum | D20: =IF(D14<=G8,D14*12,"PLEAS RE-ENTER FIGURES") -> 0

Sheet Existing Mem (hidden)
A4: STSS - Changes from 01/04/2007
A5: ILLUSTRATION FOR EXSISTING MEMBERS
A7: YOUR DETAILS
A9: Date of Birth : | E9: =Sheet5!J14 -> 1942-02-08
A11: Retirement date (Age 60) : | E11: =Sheet5!J15 -> 2002-02-08
A12: Estimated Service :
C13: Years : | E13: =Sheet5!J2 -> 34
C14: Days : | E14: =Sheet5!K2 -> 0
A15: Pensionable Salary : | E15: =Sheet5!L2 -> 10000
A17: Lifetime allowance (LTA) at date of Retirement : | E17: =Sheet5!M21 -> 
A18: LTA Maximum Cash Allowance : | E18: =E17*25% -> 
A19: Commutation Factor : | E19: 12
A22: ESTIMATED PENSION DETAILS
A24: Basic Pension
A26: Pension at normal retirement date : | E26: ='NHS Existing Members'!E5 -> 4250
A27: Lump Sum in Addition : | E27: ='NHS Existing Members'!E6 -> 12750
C28: LTA % : | E28: =(E26*20+E27)/E17 -> 
A30: Commuted Pension
A32: Maximum Tax-Free Cash : | E32: =Sheet5!N11 -> 22758
A33: Maximum Pension Commutable : | E33: ='NHS Existing Members'!G32 -> 834
A35: Amount of Pension you would like to Commute : | E35: ='NHS Existing Members'!D37 -> 2087
A36: Tax-Free Lump Sum Cash : | E36: ='NHS Existing Members'!D43 -> PLEASE RE-INPUT FIGURES
C37: Residual Pension : | E37: ='NHS Existing Members'!D42 -> YOU CAN NOT COMMUTE THIS AMOUNT OF PENSION
C38: LTA % : | E38: =(E37*20+E36)/E17 -> 

Sheet Existing Members (hidden)
A4: STSS - Changes from 01/04/2007
A5: ILLUSTRATION FOR EXSISTING MEMBERS
A7: YOUR DETAILS
A9: Date of Birth : | E9: =Sheet5!J14 -> 1942-02-08
A11: Retirement date (Age 60) : | E11: =Sheet5!J15 -> 2002-02-08
A12: Estimated Service :
C13: Years : | E13: =Sheet5!J2 -> 34
C14: Days : | E14: =Sheet5!K2 -> 0
A15: Pensionable Salary : | E15: =Sheet5!L2 -> 10000
A17: Lifetime allowance (LTA) at date of Retirement : | E17: =Sheet5!M21 -> 
A18: LTA Maximum Cash Allowance : | E18: =E17*25% -> 
A19: Commutation Factor : | E19: 12
A22: ESTIMATED PENSION DETAILS
A24: Basic Pension
A26: Pension at normal retirement date : | E26: ='NHS Existing Members'!E5 -> 4250
A27: Lump Sum in Addition : | E27: ='NHS Existing Members'!E6 -> 12750
C28: LTA % : | E28: =(E26*20+E27)/E17 -> 
A30: Commuted Pension
A32: Maximum Tax-Free Cash : | E32: =Sheet5!N11 -> 22758
A33: Maximum Pension Commutable : | E33: ='NHS Existing Members'!G32 -> 834
A35: Amount of Pension you would like to Commute : | E35: ='NHS Existing Members'!D37 -> 2087
A36: Tax-Free Lump Sum Cash : | E36: ='NHS Existing Members'!D43 -> PLEASE RE-INPUT FIGURES
C37: Residual Pension : | E37: ='NHS Existing Members'!D42 -> YOU CAN NOT COMMUTE THIS AMOUNT OF PENSION
C38: LTA % : | E38: =(E37*20+E36)/E17 -> 
A41: Basic Pension
A42: You will receive a guaranteed pension, which is indexed linked along with a guaranteed Lump Sum of
A43: 3 x the annual pension. You can not take any less than this Lump Sum amount.
A45: From 01 April 2007 you are able to Commute (Give Up) some of your annual pension (Up to a maximum
A46: 25 % of the notional fund value) and take a reduced pension with an increased tax-free lump sum.
A49: Commuted Pension
A50: This shows the maximum tax-free lump sum and reduced annual pension availible to you. By clicking on
A51: the 'Change Commutable Amount' button at the top of the page, you are able to decide how much of your
A52: annual pension you may wish to commute.

Sheet Sheet5 (hidden)
A1: 0 | B1: 1 | C1: 1 | D1: 0 | E1: 1 | F1: 1940 | G1: 3 | H1: 35 | I1: 1
A2: 1 | B2: 2 | C2: 2 | D2: 1 | E2: 2 | F2: =F1+1 -> 1941 | G2: =LOOKUP(G1,E1:E45,F1:F45) -> 1942 | H2: =LOOKUP(H1,B1:B49,A1:A49) -> 34 | I2: =LOOKUP(I1,E1:E365,D1:D365) -> 0 | J2: =H2 -> 34 | K2: =I2 -> 0 | L2: ='Commutation of Pension'!F11 -> 10000
A3: 2 | B3: 3 | C3: 3 | D3: 2 | E3: 3 | F3: 1942
A4: 3 | B4: 4 | C4: 4 | D4: 3 | E4: 4 | F4: 1943
A5: 4 | B5: 5 | C5: 5 | D5: 4 | E5: 5 | F5: 1944 | J5: =K2/365 -> 0
A6: 5 | B6: 6 | C6: 6 | D6: 5 | E6: 6 | F6: 1945 | J6: =J2+J5 -> 34
A7: 6 | B7: 7 | C7: 7 | D7: 6 | E7: 7 | F7: 1946 | J7: =J6*L2 -> 340000
A8: 7 | B8: 8 | C8: 8 | D8: 7 | E8: 8 | F8: 1947 | J8: =J7/80 -> 4250 | L8: =J7/60 -> 5666.666667
A9: 8 | B9: 9 | C9: 9 | D9: 8 | E9: 9 | F9: 1948 | J9: =J8*3 -> 12750
A10: 9 | B10: 10 | C10: 10 | D10: 9 | E10: 10 | F10: 1949 | M10: ='NHS Existing Members'!G32 -> 834
A11: 10 | B11: 11 | C11: 11 | D11: 10 | E11: 11 | F11: 1950 | M11: =M10*12 -> 10008 | N11: =J9+M11 -> 22758
A12: 11 | B12: 12 | C12: 12 | D12: 11 | E12: 12 | F12: 1951
A13: 12 | B13: 13 | C13: 13 | D13: 12 | E13: 13 | F13: 1952 | J13: 8 | K13: 2 | L13: =G2 -> 1942
A14: 13 | B14: 14 | C14: 14 | D14: 13 | E14: 14 | F14: 1953 | J14: =DATE(L13,K13,J13) -> 1942-02-08
A15: 14 | B15: 15 | C15: 15 | D15: 14 | E15: 15 | F15: 1954 | J15: =DATE(L13+60,K13,J13) -> 2002-02-08
A16: 15 | B16: 16 | C16: 16 | D16: 15 | E16: 16 | F16: 1955
A17: 16 | B17: 17 | C17: 17 | D17: 16 | E17: 17 | F17: 1956
A18: 17 | B18: 18 | C18: 18 | D18: 17 | E18: 18 | F18: 1957
A19: 18 | B19: 19 | C19: 19 | D19: 18 | E19: 19 | F19: 1958
A20: 19 | B20: 20 | C20: 20 | D20: 19 | E20: 20 | F20: 1959 | J20: LTA AMMOUNTS
A21: 20 | B21: 21 | C21: 21 | D21: 20 | E21: 21 | F21: 1960 | J21: 2005-04-01 | K21: 1500000 | M21: =LOOKUP(J15,J21:J66,K21:K66) -> 
A22: 21 | B22: 22 | C22: 22 | D22: 21 | E22: 22 | F22: 1961 | J22: 2006-04-01 | K22: 1500000
A23: 22 | B23: 23 | C23: 23 | D23: 22 | E23: 23 | F23: 1962 | J23: 2007-04-01 | K23: 1600000
A24: 23 | B24: 24 | C24: 24 | D24: 23 | E24: 24 | F24: 1963 | J24: 2008-04-01 | K24: 1650000
A25: 24 | B25: 25 | C25: 25 | D25: 24 | E25: 25 | F25: 1964 | J25: 2009-04-01 | K25: 1750000
A26: 25 | B26: 26 | C26: 26 | D26: 25 | E26: 26 | F26: 1965 | J26: 2010-04-01 | K26: 1800000
A27: 26 | B27: 27 | C27: 27 | D27: 26 | E27: 27 | F27: 1966 | J27: 2011-04-01 | K27: =K26 -> 1800000
A28: 27 | B28: 28 | C28: 28 | D28: 27 | E28: 28 | F28: 1967 | J28: 2012-04-01 | K28: 1800000
A29: 28 | B29: 29 | C29: 29 | D29: 28 | E29: 29 | F29: 1968 | J29: 2013-04-01 | K29: 1800000
A30: 29 | B30: 30 | C30: 30 | D30: 29 | E30: 30 | F30: 1969 | J30: 2014-04-01 | K30: 1800000
A31: 30 | B31: 31 | C31: 31 | D31: 30 | E31: 31 | F31: 1970 | J31: 2015-04-01 | K31: 1800000
A32: 31 | B32: 32 | D32: 31 | E32: 32 | F32: 1971 | J32: 2016-04-01 | K32: 1800000
A33: 32 | B33: 33 | D33: 32 | E33: 33 | F33: 1972 | J33: 2017-04-01 | K33: 1800000
A34: 33 | B34: 34 | D34: 33 | E34: 34 | F34: =F33+1 -> 1973 | J34: 2018-04-01 | K34: 1800000
A35: 34 | B35: 35 | D35: 34 | E35: 35 | F35: 1974 | J35: 2019-04-01 | K35: 1800000
A36: 35 | B36: 36 | D36: 35 | E36: 36 | F36: 1975 | J36: 2020-04-01 | K36: 1800000
A37: 36 | B37: 37 | D37: 36 | E37: 37 | F37: 1976 | J37: 2021-04-01 | K37: 1800000
A38: 37 | B38: 38 | D38: 37 | E38: 38 | F38: 1977 | J38: 2022-04-01 | K38: 1800000
A39: 38 | B39: 39 | D39: 38 | E39: 39 | F39: 1978 | J39: 2023-04-01 | K39: 1800000
A40: 39 | B40: 40 | D40: 39 | E40: 40 | F40: 1979 | J40: 2024-04-01 | K40: 1800000
A41: 40 | B41: 41 | D41: 40 | E41: 41 | F41: 1980 | J41: 2025-04-01 | K41: 1800000
A42: 41 | B42: 42 | D42: 41 | E42: 42 | F42: 1981 | J42: 2026-04-01 | K42: 1800000
A43: 42 | B43: 43 | D43: 42 | E43: 43 | F43: 1982 | J43: 2027-04-01 | K43: 1800000
A44: 43 | B44: 44 | D44: 43 | E44: 44 | F44: 1983 | J44: 2028-04-01 | K44: 1800000
A45: 44 | B45: 45 | D45: 44 | E45: 45 | F45: 1984 | J45: 2029-04-01 | K45: 1800000
A46: 45 | B46: 46 | D46: 45 | E46: 46 | F46: 1985 | J46: 2030-04-01 | K46: 1800000
B47: 47 | D47: =D46+1 -> 46 | E47: 47 | F47: 1986 | J47: 2031-04-01 | K47: 1800000
B48: 48 | D48: =D47+1 -> 47 | E48: 48 | F48: 1987 | J48: 2032-04-01 | K48: 1800000
B49: 49 | D49: 48 | E49: 49 | F49: 1988 | J49: 2033-04-01 | K49: 1800000
D50: 49 | E50: =E49+1 -> 50 | F50: 1989 | J50: 2034-04-01 | K50: 1800000
D51: 50 | E51: =E50+1 -> 51 | F51: 1990 | J51: 2035-04-01 | K51: 1800000
D52: 51 | E52: 52 | F52: 1991 | J52: 2036-04-01 | K52: 1800000
D53: 52 | E53: 53 | F53: 1992 | J53: 2037-04-01 | K53: 1800000
D54: 53 | E54: 54 | F54: 1993 | J54: 2038-04-01 | K54: 1800000
D55: 54 | E55: 55 | F55: 1994 | J55: 2039-04-01 | K55: 1800000
D56: 55 | E56: 56 | F56: 1995 | J56: 2040-04-01 | K56: 1800000
D57: 56 | E57: 57 | F57: 1996 | J57: 2041-04-01 | K57: 1800000
D58: 57 | E58: 58 | F58: 1997 | J58: 2042-04-01 | K58: 1800000
D59: 58 | E59: 59 | F59: 1998 | J59: 2043-04-01 | K59: 1800000
D60: 59 | E60: 60 | F60: 1999 | J60: 2044-04-01 | K60: 1800000
D61: 60 | E61: 61 | F61: 2000 | J61: 2045-04-01 | K61: 1800000
D62: 61 | E62: 62 | F62: 2001 | J62: 2046-04-01 | K62: 1800000
D63: 62 | E63: 63 | F63: 2002 | J63: 2047-04-01 | K63: 1800000
D64: 63 | E64: 64 | F64: 2003 | J64: 2048-04-01 | K64: 1800000
D65: 64 | E65: 65 | F65: 2004 | J65: 2049-04-01 | K65: 1800000
D66: 65 | E66: 66 | F66: 2005 | J66: 2050-04-01 | K66: 1800000
D67: 66 | E67: 67 | F67: 2006
D68: 67 | E68: 68 | F68: 2007
D69: 68 | E69: 69 | F69: 2008
D70: 69 | E70: 70 | F70: 2009
D71: 70 | E71: 71 | F71: 2010
D72: 71 | E72: 72 | F72: 2011
D73: 72 | E73: 73 | F73: 2012
D74: 73 | E74: 74 | F74: 2013
D75: 74 | E75: 75 | F75: 2014
D76: 75 | E76: 76 | F76: 2015
D77: 76 | E77: 77 | F77: 2016
D78: 77 | E78: 78 | F78: 2017
D79: 78 | E79: 79 | F79: 2018
D80: 79 | E80: 80 | F80: 2019
D81: 80 | E81: 81 | F81: 2020
D82: 81 | E82: 82 | F82: 2021
D83: 82 | E83: 83 | F83: 2022
D84: 83 | E84: 84 | F84: 2023
D85: 84 | E85: 85 | F85: 2024
D86: 85 | E86: 86 | F86: 2025
D87: 86 | E87: 87 | F87: 2026
D88: 87 | E88: 88 | F88: 2027
D89: 88 | E89: 89 | F89: 2028
D90: 89 | E90: 90 | F90: 2029
D91: 90 | E91: 91 | F91: 2030
D92: 91 | E92: 92 | F92: 2031
D93: 92 | E93: 93 | F93: 2032
D94: 93 | E94: 94 | F94: 2033
D95: 94 | E95: 95 | F95: 2034
D96: 95 | E96: 96 | F96: 2035
D97: 96 | E97: 97 | F97: 2036
D98: 97 | E98: 98 | F98: =F97+1 -> 2037
D99: 98 | E99: 99 | F99: 2038
D100: 99 | E100: 100 | F100: 2039
D101: 100 | E101: 101 | F101: 2040
D102: 101 | E102: 102 | F102: 2041
D103: 102 | E103: 103 | F103: 2042
D104: 103 | E104: 104 | F104: 2043
D105: 104 | E105: 105 | F105: 2044
D106: 105 | E106: 106 | F106: 2045
D107: 106 | E107: 107 | F107: 2046
D108: 107 | E108: 108 | F108: 2047
D109: 108 | E109: 109 | F109: 2048
D110: 109 | E110: 110 | F110: 2049
D111: 110 | E111: 111 | F111: 2050
D112: =D111+1 -> 111 | E112: 112 | F112: 2051
D113: 112 | E113: 113 | F113: 2052
D114: 113 | E114: 114 | F114: 2053
D115: 114 | E115: =E114+1 -> 115 | F115: 2054
D116: 115 | E116: 116 | F116: 2055
D117: 116 | E117: 117 | F117: 2056
D118: 117 | E118: 118 | F118: 2057
D119: 118 | E119: 119 | F119: 2058
D120: 119 | E120: 120 | F120: 2059
D121: 120 | E121: 121 | F121: 2060
D122: 121 | E122: 122 | F122: 2061
D123: 122 | E123: 123 | F123: 2062
D124: 123 | E124: 124 | F124: 2063
D125: 124 | E125: 125 | F125: 2064
D126: 125 | E126: 126 | F126: 2065
D127: 126 | E127: 127 | F127: 2066
D128: 127 | E128: 128 | F128: 2067
D129: 128 | E129: 129 | F129: 2068
D130: 129 | E130: 130 | F130: 2069
D131: 130 | E131: 131 | F131: 2070
D132: 131 | E132: 132 | F132: 2071
D133: 132 | E133: 133 | F133: 2072
D134: 133 | E134: 134 | F134: 2073
D135: 134 | E135: 135 | F135: 2074
D136: 135 | E136: 136 | F136: 2075
D137: 136 | E137: 137 | F137: 2076
D138: 137 | E138: 138 | F138: 2077
D139: 138 | E139: 139 | F139: 2078
D140: 139 | E140: 140 | F140: 2079
D141: 140 | E141: 141 | F141: 2080
D142: 141 | E142: 142 | F142: 2081
D143: 142 | E143: 143 | F143: 2082
D144: 143 | E144: 144 | F144: 2083
D145: 144 | E145: 145 | F145: 2084
D146: 145 | E146: 146 | F146: 2085
D147: 146 | E147: 147 | F147: 2086
D148: 147 | E148: 148 | F148: 2087
D149: 148 | E149: 149 | F149: 2088
D150: 149 | E150: 150 | F150: 2089
D151: 150 | E151: 151 | F151: 2090
D152: 151 | E152: 152 | F152: 2091
D153: 152 | E153: 153 | F153: 2092
D154: 153 | E154: 154 | F154: 2093
D155: 154 | E155: 155 | F155: 2094
D156: 155 | E156: 156 | F156: 2095
D157: 156 | E157: 157 | F157: 2096
D158: 157 | E158: 158 | F158: 2097
D159: 158 | E159: 159 | F159: 2098
D160: 159 | E160: 160 | F160: 2099
D161: 160 | E161: 161 | F161: 2100
D162: 161 | E162: 162 | F162: =F161+1 -> 2101
D163: 162 | E163: 163 | F163: 2102
D164: 163 | E164: 164 | F164: 2103
D165: 164 | E165: 165 | F165: 2104
D166: 165 | E166: 166 | F166: 2105
D167: 166 | E167: 167 | F167: 2106
D168: 167 | E168: 168 | F168: 2107
D169: 168 | E169: 169 | F169: 2108
D170: 169 | E170: 170 | F170: 2109
D171: 170 | E171: 171 | F171: 2110
D172: 171 | E172: 172 | F172: 2111
D173: 172 | E173: 173 | F173: 2112
D174: 173 | E174: 174 | F174: 2113
D175: 174 | E175: 175 | F175: 2114
D176: =D175+1 -> 175 | E176: 176 | F176: 2115
D177: 176 | E177: 177 | F177: 2116
D178: 177 | E178: 178 | F178: 2117
D179: 178 | E179: =E178+1 -> 179 | F179: 2118
D180: 179 | E180: 180 | F180: 2119
D181: 180 | E181: 181 | F181: 2120
D182: 181 | E182: 182 | F182: 2121
D183: 182 | E183: 183 | F183: 2122
D184: 183 | E184: 184 | F184: 2123
D185: 184 | E185: 185 | F185: 2124
D186: 185 | E186: 186 | F186: 2125
D187: 186 | E187: 187 | F187: 2126
D188: 187 | E188: 188 | F188: 2127
D189: 188 | E189: 189 | F189: 2128
D190: 189 | E190: 190 | F190: 2129
D191: 190 | E191: 191 | F191: 2130
D192: 191 | E192: 192 | F192: 2131
D193: 192 | E193: 193 | F193: 2132
D194: 193 | E194: 194 | F194: 2133
D195: 194 | E195: 195 | F195: 2134
D196: 195 | E196: 196 | F196: 2135
D197: 196 | E197: 197 | F197: 2136
D198: 197 | E198: 198 | F198: 2137
D199: 198 | E199: 199 | F199: 2138
D200: 199 | E200: 200 | F200: 2139
... 497 more rows
